[Event "*** SCC Grand Prix: Titled Tuesday Blitz"]
[Site "Chess.com"]
[Date "2020.07.14"]
[Round "1"]
[White "Sibelephant"]
[Black "Vladislav_Chizhikov"]
[Result "1-0"]
[WhiteElo "3141"]
[BlackElo "2455"]
[TimeControl "180+1"]
[EndTime "10:06:44 PDT"]
[Termination "Sibelephant won on time"]

1. c4 {[%clk 0:02:58.5]} 1... c5 {[%clk 0:02:59.6]} 2. Nc3 {[%clk 0:02:58]} 2...
Nc6 {[%clk 0:02:59.2]} 3. Nf3 {[%clk 0:02:57.9]} 3... g6 {[%clk 0:02:58.7]} 4.
e3 {[%clk 0:02:57.6]} 4... Bg7 {[%clk 0:02:52.9]} 5. d4 {[%clk 0:02:57.1]} 5...
d6 {[%clk 0:02:36]} 6. d5 {[%clk 0:02:57]} 6... Nb8 {[%clk 0:02:35.4]} 7. e4
{[%clk 0:02:55.1]} 7... a6 {[%clk 0:02:31.1]} 8. Be2 {[%clk 0:02:49.2]} 8... Nf6
{[%clk 0:02:31.1]} 9. O-O {[%clk 0:02:49.1]} 9... O-O {[%clk 0:02:31]} 10. a4
{[%clk 0:02:46.8]} 10... e6 {[%clk 0:02:25.5]} 11. a5 {[%clk 0:02:32]} 11...
exd5 {[%clk 0:02:23.4]} 12. cxd5 {[%clk 0:02:31.7]} 12... Re8 {[%clk 0:02:20.5]}
13. Nd2 {[%clk 0:02:29]} 13... Nbd7 {[%clk 0:02:10.7]} 14. Re1 {[%clk
0:02:20.6]} 14... b5 {[%clk 0:02:09]} 15. axb6 {[%clk 0:02:20.3]} 15... Qxb6
{[%clk 0:02:08.7]} 16. Nc4 {[%clk 0:02:12.3]} 16... Qc7 {[%clk 0:02:08.3]} 17.
Bf4 {[%clk 0:02:06.7]} 17... Bf8 {[%clk 0:02:00.8]} 18. Qc2 {[%clk 0:01:52.3]}
18... Rb8 {[%clk 0:01:59]} 19. h3 {[%clk 0:01:43.4]} 19... Rb4 {[%clk
0:01:56.9]} 20. Bf1 {[%clk 0:01:39.8]} 20... Ne5 {[%clk 0:01:48.4]} 21. Nxe5
{[%clk 0:01:30.2]} 21... dxe5 {[%clk 0:01:48.3]} 22. Bg5 {[%clk 0:01:30.3]}
22... Qd6 {[%clk 0:01:43.6]} 23. Nb1 {[%clk 0:01:26.1]} 23... Nd7 {[%clk
0:01:27.2]} 24. Nd2 {[%clk 0:01:24.9]} 24... Qb8 {[%clk 0:01:19.1]} 25. b3
{[%clk 0:01:19]} 25... Rb6 {[%clk 0:00:46.2]} 26. Ra4 {[%clk 0:01:11.7]} 26...
Bd6 {[%clk 0:00:44.5]} 27. Rea1 {[%clk 0:01:05.9]} 27... Nf8 {[%clk 0:00:26.7]}
28. Bxa6 {[%clk 0:01:03.4]} 28... Bd7 {[%clk 0:00:18]} 29. Ra5 {[%clk
0:01:03.7]} 29... f5 {[%clk 0:00:15]} 30. Bd3 {[%clk 0:01:01.3]} 30... Rb4
{[%clk 0:00:14.9]} 31. exf5 {[%clk 0:00:59.4]} 31... gxf5 {[%clk 0:00:13.1]} 32.
Bxf5 {[%clk 0:00:59.2]} 32... Bxf5 {[%clk 0:00:08.3]} 33. Qxf5 {[%clk
0:00:58.9]} 33... Ng6 {[%clk 0:00:09.2]} 34. Ra7 {[%clk 0:00:56]} 34... Rf8
{[%clk 0:00:06.7]} 35. Qe6+ {[%clk 0:00:56.1]} 35... Kh8 {[%clk 0:00:03.9]} 36.
Bf6+ {[%clk 0:00:56.7]} 1-0

[Event "*** SCC Grand Prix: Titled Tuesday Blitz"]
[Site "Chess.com"]
[Date "2020.07.14"]
[Round "1"]
[White "Saylormoon"]
[Black "DaggiGretarsson"]
[Result "0-1"]
[WhiteElo "2296"]
[BlackElo "2605"]
[TimeControl "180+1"]
[EndTime "10:06:44 PDT"]
[Termination "DaggiGretarsson won by resignation"]

1. e4 {[%clk 0:03:00.1]} 1... g6 {[%clk 0:02:59.7]} 2. d4 {[%clk 0:02:58.5]}
2... Bg7 {[%clk 0:02:59.8]} 3. Nc3 {[%clk 0:02:59.1]} 3... d6 {[%clk 0:02:59.9]}
4. Bg5 {[%clk 0:02:58.8]} 4... a6 {[%clk 0:02:58.8]} 5. a4 {[%clk 0:02:56.7]}
5... b6 {[%clk 0:02:56.4]} 6. Qd2 {[%clk 0:02:56.4]} 6... Nd7 {[%clk 0:02:56.1]}
7. h4 {[%clk 0:02:56.4]} 7... Bb7 {[%clk 0:02:45.5]} 8. h5 {[%clk 0:02:55.5]}
8... h6 {[%clk 0:02:45.4]} 9. hxg6 {[%clk 0:02:47.4]} 9... hxg5 {[%clk
0:02:39.6]} 10. Rxh8 {[%clk 0:02:47.9]} 10... Bxh8 {[%clk 0:02:39.5]} 11. gxf7+
{[%clk 0:02:47.9]} 11... Kxf7 {[%clk 0:02:38.9]} 12. Qxg5 {[%clk 0:02:47.7]}
12... Bxd4 {[%clk 0:02:19.6]} 13. Bc4+ {[%clk 0:02:29]} 13... e6 {[%clk
0:02:15.9]} 14. Qh5+ {[%clk 0:02:29]} 14... Kg7 {[%clk 0:01:54.9]} 15. Bxe6
{[%clk 0:02:23.7]} 15... Bxc3+ {[%clk 0:01:48.2]} 16. bxc3 {[%clk 0:02:02.8]}
16... Qf6 {[%clk 0:01:46.8]} 17. Qg4+ {[%clk 0:01:56]} 17... Kh8 {[%clk
0:01:40.6]} 18. O-O-O {[%clk 0:01:36.9]} 18... Ne5 {[%clk 0:01:32]} 19. Qh3+
{[%clk 0:01:33.2]} 19... Qh6+ {[%clk 0:01:31.6]} 20. f4 {[%clk 0:01:33.8]} 20...
Qxh3 {[%clk 0:01:26.6]} 21. Nxh3 {[%clk 0:01:34.7]} 21... Ng6 {[%clk 0:01:24.4]}
22. f5 {[%clk 0:01:28.2]} 22... Ne5 {[%clk 0:01:18.4]} 23. Ng5 {[%clk
0:01:25.4]} 23... Nf6 {[%clk 0:01:15.9]} 24. Rh1+ {[%clk 0:01:21]} 24... Kg7
{[%clk 0:01:15.2]} 25. Rh3 {[%clk 0:01:15.5]} 25... Rh8 {[%clk 0:01:08.5]} 26.
Rg3 {[%clk 0:01:15.3]} 26... Nh5 {[%clk 0:00:58.1]} 27. Re3 {[%clk 0:00:56.7]}
27... Kf6 {[%clk 0:00:49.8]} 28. Nh3 {[%clk 0:00:49.9]} 28... Rh7 {[%clk
0:00:43.9]} 29. Re1 {[%clk 0:00:47.4]} 29... Rg7 {[%clk 0:00:43.4]} 30. Re2
{[%clk 0:00:47.2]} 30... Ng3 {[%clk 0:00:40.8]} 31. Re3 {[%clk 0:00:46.2]} 31...
Nxe4 {[%clk 0:00:36.4]} 32. Nf4 {[%clk 0:00:46.1]} 32... Rh7 {[%clk 0:00:34.8]}
33. Bd5 {[%clk 0:00:39]} 33... Rh1+ {[%clk 0:00:29.7]} 34. Kb2 {[%clk
0:00:38.4]} 34... Nd2 {[%clk 0:00:27.5]} 0-1

[Event "*** SCC Grand Prix: Titled Tuesday Blitz"]
[Site "Chess.com"]
[Date "2020.07.14"]
[Round "1"]
[White "Gusarov91"]
[Black "Parkas"]
[Result "1-0"]
[WhiteElo "2663"]
[BlackElo "2343"]
[TimeControl "180+1"]
[EndTime "10:06:47 PDT"]
[Termination "Gusarov91 won on time"]

1. d4 {[%clk 0:02:59.4]} 1... g6 {[%clk 0:02:59.4]} 2. Nf3 {[%clk 0:02:59.7]}
2... Bg7 {[%clk 0:02:59.8]} 3. c4 {[%clk 0:02:50.2]} 3... d6 {[%clk 0:02:59.7]}
4. Nc3 {[%clk 0:02:50.4]} 4... e5 {[%clk 0:02:59.3]} 5. dxe5 {[%clk 0:02:50.2]}
5... dxe5 {[%clk 0:03:00.2]} 6. Qxd8+ {[%clk 0:02:50.5]} 6... Kxd8 {[%clk
0:03:01.1]} 7. Bg5+ {[%clk 0:02:50.4]} 7... f6 {[%clk 0:02:58.6]} 8. O-O-O+
{[%clk 0:02:50.9]} 8... Bd7 {[%clk 0:02:54.3]} 9. Bh4 {[%clk 0:02:44.8]} 9...
Kc8 {[%clk 0:02:52.3]} 10. Nd5 {[%clk 0:02:40.3]} 10... c6 {[%clk 0:02:45.3]}
11. Nc3 {[%clk 0:02:34.5]} 11... Nh6 {[%clk 0:02:42.8]} 12. e3 {[%clk
0:02:32.7]} 12... Nf5 {[%clk 0:02:30.6]} 13. Ne4 {[%clk 0:02:32.4]} 13... Nxh4
{[%clk 0:02:26.9]} 14. Nxh4 {[%clk 0:02:31.7]} 14... Kc7 {[%clk 0:02:06.3]} 15.
Nf3 {[%clk 0:02:15.9]} 15... Be6 {[%clk 0:01:57.6]} 16. Nc5 {[%clk 0:02:14.6]}
16... Bf7 {[%clk 0:01:57.3]} 17. b3 {[%clk 0:02:07.3]} 17... b6 {[%clk
0:01:50.8]} 18. Ne4 {[%clk 0:02:07.3]} 18... Nd7 {[%clk 0:01:49.3]} 19. Be2
{[%clk 0:02:06.8]} 19... a5 {[%clk 0:01:37.9]} 20. Rd2 {[%clk 0:01:48]} 20...
Rhd8 {[%clk 0:01:24.1]} 21. Rhd1 {[%clk 0:01:45.7]} 21... Nf8 {[%clk 0:00:52.9]}
22. g4 {[%clk 0:01:23.9]} 22... Ne6 {[%clk 0:00:44.4]} 23. h3 {[%clk 0:01:22.6]}
23... Rxd2 {[%clk 0:00:20.1]} 24. Nfxd2 {[%clk 0:01:20.8]} 24... Rd8 {[%clk
0:00:21]} 25. Ng3 {[%clk 0:01:20.4]} 25... Bf8 {[%clk 0:00:20.4]} 26. Kc2 {[%clk
0:01:19.6]} 26... Nc5 {[%clk 0:00:19.9]} 27. Nde4 {[%clk 0:01:19.2]} 27... Nxe4
{[%clk 0:00:16.8]} 28. Rxd8 {[%clk 0:01:14.6]} 28... Kxd8 {[%clk 0:00:16.6]} 29.
Nxe4 {[%clk 0:01:15.3]} 29... Be7 {[%clk 0:00:16.7]} 30. Ng3 {[%clk 0:01:11.2]}
30... Kc7 {[%clk 0:00:12.9]} 31. Bf3 {[%clk 0:01:11.2]} 31... Be6 {[%clk
0:00:09.9]} 32. Be4 {[%clk 0:01:11.5]} 32... Bb4 {[%clk 0:00:08.1]} 33. Ne2
{[%clk 0:01:05.1]} 33... Be1 {[%clk 0:00:07.5]} 34. f4 {[%clk 0:01:04.4]} 34...
Kd6 {[%clk 0:00:05.4]} 35. Bd3 {[%clk 0:01:01.4]} 35... f5 {[%clk 0:00:01.6]}
36. gxf5 {[%clk 0:00:55.7]} 36... gxf5 {[%clk 0:00:02.5]} 37. fxe5+ {[%clk
0:00:54.3]} 37... Kxe5 {[%clk 0:00:02.4]} 38. Nd4 {[%clk 0:00:54.9]} 38... Bd7
{[%clk 0:00:01.1]} 39. Nf3+ {[%clk 0:00:55.1]} 1-0

[Event "*** SCC Grand Prix: Titled Tuesday Blitz"]
[Site "Chess.com"]
[Date "2020.07.14"]
[Round "1"]
[White "politeplayer"]
[Black "CheckThis4"]
[Result "1-0"]
[WhiteElo "2204"]
[BlackElo "2502"]
[TimeControl "180+1"]
[EndTime "10:06:47 PDT"]
[Termination "politeplayer won by checkmate"]

1. e4 {[%clk 0:02:59]} 1... e6 {[%clk 0:02:59.3]} 2. d4 {[%clk 0:02:58]} 2... d5
{[%clk 0:02:57.7]} 3. exd5 {[%clk 0:02:58.1]} 3... exd5 {[%clk 0:02:57.3]} 4.
Nc3 {[%clk 0:02:58.7]} 4... Nf6 {[%clk 0:02:55.5]} 5. Nf3 {[%clk 0:02:56.4]}
5... Bg4 {[%clk 0:02:52.9]} 6. h3 {[%clk 0:02:51]} 6... Bh5 {[%clk 0:02:52.1]}
7. g4 {[%clk 0:02:49.1]} 7... Bg6 {[%clk 0:02:51.5]} 8. Ne5 {[%clk 0:02:46.7]}
8... Nbd7 {[%clk 0:02:47.3]} 9. h4 {[%clk 0:02:36.9]} 9... Nxe5 {[%clk 0:02:15]}
10. dxe5 {[%clk 0:02:35.9]} 10... d4 {[%clk 0:02:14]} 11. exf6 {[%clk
0:02:24.8]} 11... dxc3 {[%clk 0:02:13.9]} 12. Bb5+ {[%clk 0:01:30.4]} 12... c6
{[%clk 0:02:13]} 13. Qe2+ {[%clk 0:01:29]} 13... Kd7 {[%clk 0:02:12.9]} 14. Bf4
{[%clk 0:01:22.8]} 14... cxb5 {[%clk 0:01:42.2]} 15. O-O-O+ {[%clk 0:01:18.6]}
15... Kc6 {[%clk 0:01:42.3]} 16. Qf3+ {[%clk 0:01:03.2]} 16... Kb6 {[%clk
0:01:38.7]} 17. Rxd8 {[%clk 0:00:47.3]} 17... cxb2+ {[%clk 0:01:38.6]} 18. Kxb2
{[%clk 0:00:41]} 18... Rxd8 {[%clk 0:01:39.5]} 19. Qc3 {[%clk 0:00:20.3]} 19...
Bc5 {[%clk 0:01:34.5]} 20. fxg7 {[%clk 0:00:16.8]} 20... Rhe8 {[%clk 0:01:21.2]}
21. Bc7+ {[%clk 0:00:16.3]} 21... Kxc7 {[%clk 0:01:17.7]} 22. Qxc5+ {[%clk
0:00:15.1]} 22... Kb8 {[%clk 0:01:18.3]} 23. h5 {[%clk 0:00:12.8]} 23... Be4
{[%clk 0:01:13.5]} 24. Re1 {[%clk 0:00:12.4]} 24... Rc8 {[%clk 0:01:09.7]} 25.
Rxe4 {[%clk 0:00:10.9]} 25... Rxe4 {[%clk 0:01:02.9]} 26. Qxc8+ {[%clk
0:00:10.4]} 26... Kxc8 {[%clk 0:01:03.8]} 27. g8=Q+ {[%clk 0:00:10.3]} 27... Kd7
{[%clk 0:01:03.5]} 28. Qxf7+ {[%clk 0:00:10.2]} 28... Re7 {[%clk 0:01:04.1]} 29.
Qf5+ {[%clk 0:00:09.8]} 29... Kc7 {[%clk 0:01:03.8]} 30. Qc5+ {[%clk 0:00:08.8]}
30... Kd8 {[%clk 0:01:03.9]} 31. Qd6+ {[%clk 0:00:08.2]} 31... Rd7 {[%clk
0:01:01.8]} 32. Qf8+ {[%clk 0:00:07.6]} 32... Kc7 {[%clk 0:01:02.1]} 33. g5
{[%clk 0:00:07.9]} 33... a5 {[%clk 0:01:00.3]} 34. g6 {[%clk 0:00:07.8]} 34...
hxg6 {[%clk 0:01:00.9]} 35. hxg6 {[%clk 0:00:07.6]} 35... b4 {[%clk 0:01:00.7]}
36. g7 {[%clk 0:00:07.3]} 36... a4 {[%clk 0:01:01.6]} 37. Qf4+ {[%clk 0:00:07]}
37... Kc6 {[%clk 0:01:01]} 38. g8=Q {[%clk 0:00:06.4]} 38... a3+ {[%clk
0:01:00.8]} 39. Kc1 {[%clk 0:00:06.3]} 39... b5 {[%clk 0:01:00.3]} 40. Qc8+
{[%clk 0:00:05.3]} 40... Kb6 {[%clk 0:00:58]} 41. Qxd7 {[%clk 0:00:05.3]} 41...
b3 {[%clk 0:00:58.9]} 42. Qfd6+ {[%clk 0:00:05.5]} 42... Ka5 {[%clk 0:00:58.1]}
43. Qa7# {[%clk 0:00:05.9]} 1-0

[Event "*** SCC Grand Prix: Titled Tuesday Blitz"]
[Site "Chess.com"]
[Date "2020.07.14"]
[Round "1"]
[White "gagtemp"]
[Black "kran900"]
[Result "0-1"]
[WhiteElo "1936"]
[BlackElo "2460"]
[TimeControl "180+1"]
[EndTime "10:06:49 PDT"]
[Termination "kran900 won by checkmate"]

1. e4 {[%clk 0:02:58.7]} 1... d5 {[%clk 0:02:59.9]} 2. exd5 {[%clk 0:02:58.4]}
2... Qxd5 {[%clk 0:03:00.8]} 3. Nf3 {[%clk 0:02:58.3]} 3... Nc6 {[%clk
0:02:59.7]} 4. Be2 {[%clk 0:02:53]} 4... Bg4 {[%clk 0:02:58.6]} 5. c4 {[%clk
0:02:49.1]} 5... Qd6 {[%clk 0:02:58.5]} 6. Nc3 {[%clk 0:02:37.6]} 6... O-O-O
{[%clk 0:02:57]} 7. O-O {[%clk 0:02:24.7]} 7... Bxf3 {[%clk 0:02:53.5]} 8. Bxf3
{[%clk 0:02:22.9]} 8... Nd4 {[%clk 0:02:53.7]} 9. b3 {[%clk 0:02:15.8]} 9... e5
{[%clk 0:02:49.3]} 10. Ne4 {[%clk 0:02:13.4]} 10... Qg6 {[%clk 0:02:47.9]} 11.
d3 {[%clk 0:02:05.8]} 11... f5 {[%clk 0:02:45.9]} 12. Ng3 {[%clk 0:01:59.6]}
12... Nh6 {[%clk 0:02:21.9]} 13. Bh5 {[%clk 0:01:54.2]} 13... Qf6 {[%clk
0:02:16]} 14. Bb2 {[%clk 0:01:37]} 14... g5 {[%clk 0:02:13]} 15. Be2 {[%clk
0:01:34.7]} 15... Bc5 {[%clk 0:02:06.8]} 16. Bxd4 {[%clk 0:01:29.8]} 16... Bxd4
{[%clk 0:02:05.2]} 17. Rc1 {[%clk 0:01:28.1]} 17... e4 {[%clk 0:01:58.1]} 18.
Qc2 {[%clk 0:01:22.5]} 18... e3 {[%clk 0:01:57.6]} 19. f3 {[%clk 0:01:06]} 19...
Nf7 {[%clk 0:01:44.6]} 20. c5 {[%clk 0:01:04.4]} 20... c6 {[%clk 0:01:42.9]} 21.
b4 {[%clk 0:01:02.8]} 21... h5 {[%clk 0:01:42.1]} 22. Rfd1 {[%clk 0:00:59]}
22... h4 {[%clk 0:01:41.5]} 23. Nf1 {[%clk 0:00:58.5]} 23... f4 {[%clk
0:01:25.1]} 24. Rb1 {[%clk 0:00:52.9]} 24... h3 {[%clk 0:01:19.2]} 25. g4 {[%clk
0:00:46.2]} 25... fxg3 {[%clk 0:01:11.8]} 26. Nxg3 {[%clk 0:00:45.2]} 26... Ne5
{[%clk 0:01:11.7]} 27. Rf1 {[%clk 0:00:41.4]} 27... Qf4 {[%clk 0:01:02.8]} 28.
b5 {[%clk 0:00:38.8]} 28... cxb5 {[%clk 0:00:59.2]} 29. Rxb5 {[%clk 0:00:37.4]}
29... Nc6 {[%clk 0:00:58.8]} 30. Rfb1 {[%clk 0:00:33.2]} 30... Rh7 {[%clk
0:00:57.8]} 31. Qc4 {[%clk 0:00:30.4]} 31... Qf7 {[%clk 0:00:42.8]} 32. Qc2
{[%clk 0:00:25.7]} 32... g4 {[%clk 0:00:41.3]} 33. Rf1 {[%clk 0:00:21.4]} 33...
gxf3 {[%clk 0:00:41.4]} 34. Rxf3 {[%clk 0:00:20.6]} 34... Qxf3 {[%clk
0:00:34.1]} 35. Bxf3 {[%clk 0:00:19.6]} 35... e2+ {[%clk 0:00:34]} 36. Kh1
{[%clk 0:00:15.9]} 36... e1=Q+ {[%clk 0:00:34]} 37. Nf1 {[%clk 0:00:15.1]} 37...
Qxf1# {[%clk 0:00:34.1]} 0-1

[Event "*** SCC Grand Prix: Titled Tuesday Blitz"]
[Site "Chess.com"]
[Date "2020.07.14"]
[Round "1"]
[White "tlomigtlis"]
[Black "crescentmoon2411"]
[Result "0-1"]
[WhiteElo "2426"]
[BlackElo "2859"]
[TimeControl "180+1"]
[EndTime "10:06:50 PDT"]
[Termination "crescentmoon2411 won by checkmate"]

1. d4 {[%clk 0:03:00.9]} 1... Nf6 {[%clk 0:02:59.8]} 2. c4 {[%clk 0:03:00.6]}
2... e6 {[%clk 0:03:00.1]} 3. Nc3 {[%clk 0:03:00.6]} 3... Bb4 {[%clk 0:02:59.7]}
4. Qc2 {[%clk 0:03:00.9]} 4... O-O {[%clk 0:02:59.3]} 5. a3 {[%clk 0:03:01.4]}
5... Bxc3+ {[%clk 0:02:59.3]} 6. Qxc3 {[%clk 0:03:02.3]} 6... b6 {[%clk
0:02:57.7]} 7. Bg5 {[%clk 0:03:02.5]} 7... Bb7 {[%clk 0:02:57.2]} 8. e3 {[%clk
0:03:03]} 8... h6 {[%clk 0:02:56]} 9. Bh4 {[%clk 0:03:02.6]} 9... d6 {[%clk
0:02:55.4]} 10. Ne2 {[%clk 0:03:02.9]} 10... Nbd7 {[%clk 0:02:53.1]} 11. Qc2
{[%clk 0:03:03.3]} 11... c5 {[%clk 0:02:30.1]} 12. Rd1 {[%clk 0:03:02.4]} 12...
Qe7 {[%clk 0:02:20.2]} 13. Nc3 {[%clk 0:03:02.1]} 13... cxd4 {[%clk 0:02:15.7]}
14. Rxd4 {[%clk 0:03:03]} 14... Ne5 {[%clk 0:02:01]} 15. f3 {[%clk 0:02:38.1]}
15... Bxf3 {[%clk 0:01:53.9]} 16. gxf3 {[%clk 0:02:39]} 16... Nxf3+ {[%clk
0:01:53.6]} 17. Kf2 {[%clk 0:02:39.3]} 17... Nxd4 {[%clk 0:01:31.2]} 18. exd4
{[%clk 0:02:40.2]} 18... Rfc8 {[%clk 0:00:54.7]} 19. Rg1 {[%clk 0:02:37.8]}
19... d5 {[%clk 0:00:44.6]} 20. Bd3 {[%clk 0:01:24.3]} 20... dxc4 {[%clk
0:00:39.8]} 21. Be4 {[%clk 0:01:24.4]} 21... Rab8 {[%clk 0:00:38.8]} 22. Bg3
{[%clk 0:01:20.9]} 22... b5 {[%clk 0:00:36.5]} 23. Bxb8 {[%clk 0:01:18.2]} 23...
Rxb8 {[%clk 0:00:36.7]} 24. Qd2 {[%clk 0:01:12.5]} 24... Kf8 {[%clk 0:00:31.7]}
25. Qf4 {[%clk 0:01:10]} 25... Rd8 {[%clk 0:00:30.7]} 26. Nxb5 {[%clk
0:01:04.3]} 26... a6 {[%clk 0:00:27.9]} 27. Nc3 {[%clk 0:00:54.3]} 27... Rxd4
{[%clk 0:00:27.5]} 28. Ke3 {[%clk 0:00:49.8]} 28... e5 {[%clk 0:00:26.4]} 29.
Qg3 {[%clk 0:00:46.8]} 29... g5 {[%clk 0:00:22.3]} 30. h4 {[%clk 0:00:41.8]}
30... Nxe4 {[%clk 0:00:22.2]} 31. Nxe4 {[%clk 0:00:39.8]} 31... Rd3+ {[%clk
0:00:22.6]} 32. Ke2 {[%clk 0:00:39.2]} 32... Rxg3 {[%clk 0:00:23.5]} 33. Rxg3
{[%clk 0:00:39.7]} 33... f5 {[%clk 0:00:20.7]} 34. Rf3 {[%clk 0:00:35.1]} 34...
f4 {[%clk 0:00:20.6]} 35. hxg5 {[%clk 0:00:33.7]} 35... hxg5 {[%clk 0:00:21.5]}
36. Ng3 {[%clk 0:00:34.4]} 36... g4 {[%clk 0:00:21]} 37. Rf1 {[%clk 0:00:32.5]}
37... Qb7 {[%clk 0:00:20.8]} 38. Nh1 {[%clk 0:00:29.5]} 38... Qxb2+ {[%clk
0:00:20.1]} 39. Ke1 {[%clk 0:00:29.2]} 39... c3 {[%clk 0:00:20.3]} 40. Nf2
{[%clk 0:00:29.2]} 40... Qd2# {[%clk 0:00:20.2]} 0-1

[Event "*** SCC Grand Prix: Titled Tuesday Blitz"]
[Site "Chess.com"]
[Date "2020.07.14"]
[Round "1"]
[White "econpower"]
[Black "DishonorOnYourCow"]
[Result "1-0"]
[WhiteElo "2664"]
[BlackElo "2343"]
[TimeControl "180+1"]
[EndTime "10:06:51 PDT"]
[Termination "econpower won by resignation"]

1. c4 {[%clk 0:03:00.3]} 1... e5 {[%clk 0:02:56.8]} 2. g3 {[%clk 0:03:00.3]}
2... Nc6 {[%clk 0:02:56.3]} 3. Bg2 {[%clk 0:03:00.8]} 3... Bc5 {[%clk
0:02:55.8]} 4. Nc3 {[%clk 0:03:01.4]} 4... d6 {[%clk 0:02:55.7]} 5. e3 {[%clk
0:03:02]} 5... a6 {[%clk 0:02:56]} 6. Nge2 {[%clk 0:03:02.2]} 6... Ba7 {[%clk
0:02:56.1]} 7. O-O {[%clk 0:02:59.8]} 7... h5 {[%clk 0:02:55.8]} 8. h3 {[%clk
0:03:00.3]} 8... h4 {[%clk 0:02:55.5]} 9. g4 {[%clk 0:03:00.8]} 9... f5 {[%clk
0:02:55.9]} 10. gxf5 {[%clk 0:03:01.1]} 10... Bxf5 {[%clk 0:02:56.2]} 11. d3
{[%clk 0:03:01.5]} 11... Qd7 {[%clk 0:02:55.6]} 12. Kh2 {[%clk 0:03:02]} 12...
g5 {[%clk 0:02:52.1]} 13. e4 {[%clk 0:03:01.7]} 13... Be6 {[%clk 0:02:49.7]} 14.
Bxg5 {[%clk 0:03:02.2]} 14... Nge7 {[%clk 0:02:49.3]} 15. Nd5 {[%clk 0:02:59]}
15... Bxd5 {[%clk 0:02:38.8]} 16. cxd5 {[%clk 0:02:52.4]} 16... Nd4 {[%clk
0:02:37.5]} 17. Nxd4 {[%clk 0:02:32]} 17... Bxd4 {[%clk 0:02:38.4]} 18. Bf3
{[%clk 0:02:11.5]} 18... Ng6 {[%clk 0:02:08.7]} 19. Bg4 {[%clk 0:01:56.1]} 19...
Qf7 {[%clk 0:02:04.5]} 20. Be6 {[%clk 0:01:49.2]} 20... Qg7 {[%clk 0:01:56.4]}
21. Qa4+ {[%clk 0:01:32.2]} 21... b5 {[%clk 0:01:55.5]} 22. Qc2 {[%clk
0:01:31.8]} 22... c5 {[%clk 0:01:43.5]} 23. dxc6 {[%clk 0:01:26.4]} 23... Nf8
{[%clk 0:01:25]} 24. c7 {[%clk 0:01:11.3]} 24... Nxe6 {[%clk 0:01:15.4]} 25.
c8=Q+ {[%clk 0:01:10.7]} 25... Rxc8 {[%clk 0:01:14.9]} 26. Qxc8+ {[%clk
0:01:11.2]} 26... Kf7 {[%clk 0:01:14.1]} 27. Qd7+ {[%clk 0:01:11.8]} 27... Kf8
{[%clk 0:01:03.5]} 28. Qxe6 {[%clk 0:00:44.3]} 28... Qxg5 {[%clk 0:01:00.5]} 29.
Qxd6+ {[%clk 0:00:40.6]} 29... Ke8 {[%clk 0:00:55.5]} 30. Qe6+ {[%clk
0:00:37.5]} 30... Kf8 {[%clk 0:00:53]} 31. Qg4 {[%clk 0:00:31.9]} 31... Qf6
{[%clk 0:00:47.4]} 32. Rac1 {[%clk 0:00:29.4]} 32... Bxb2 {[%clk 0:00:15.9]} 33.
Rc8+ {[%clk 0:00:28.3]} 33... Ke7 {[%clk 0:00:16]} 34. Rc7+ {[%clk 0:00:27.1]}
34... Ke8 {[%clk 0:00:12.1]} 35. Qd7+ {[%clk 0:00:25]} 35... Kf8 {[%clk
0:00:11.2]} 36. Rc8+ {[%clk 0:00:25.9]} 1-0

[Event "*** SCC Grand Prix: Titled Tuesday Blitz"]
[Site "Chess.com"]
[Date "2020.07.14"]
[Round "1"]
[White "TheNextLevelFan"]
[Black "vesalhamedinia"]
[Result "1-0"]
[WhiteElo "2533"]
[BlackElo "2202"]
[TimeControl "180+1"]
[EndTime "10:06:52 PDT"]
[Termination "TheNextLevelFan won by resignation"]

1. d4 {[%clk 0:02:58.5]} 1... d5 {[%clk 0:02:59.8]} 2. c4 {[%clk 0:02:57.8]}
2... e6 {[%clk 0:02:59.1]} 3. Nf3 {[%clk 0:02:57.6]} 3... Nf6 {[%clk 0:02:59.1]}
4. g3 {[%clk 0:02:57.9]} 4... Bb4+ {[%clk 0:02:59.7]} 5. Bd2 {[%clk 0:02:55]}
5... Be7 {[%clk 0:03:00.2]} 6. Qc2 {[%clk 0:02:54]} 6... O-O {[%clk 0:03:00.5]}
7. Bg2 {[%clk 0:02:54.2]} 7... Nbd7 {[%clk 0:03:01.1]} 8. O-O {[%clk 0:02:53]}
8... c6 {[%clk 0:03:01.7]} 9. Bf4 {[%clk 0:02:49.9]} 9... b6 {[%clk 0:02:56.5]}
10. Nbd2 {[%clk 0:02:48.7]} 10... Nh5 {[%clk 0:02:53.3]} 11. Be3 {[%clk
0:02:44.4]} 11... f5 {[%clk 0:02:48.9]} 12. cxd5 {[%clk 0:02:16.7]} 12... cxd5
{[%clk 0:02:43]} 13. Qc6 {[%clk 0:02:17]} 13... Ba6 {[%clk 0:01:40.1]} 14. Qxe6+
{[%clk 0:02:16]} 14... Kh8 {[%clk 0:01:38.8]} 15. Ne5 {[%clk 0:02:13.6]} 15...
Nxe5 {[%clk 0:01:22.2]} 16. Qxe5 {[%clk 0:02:13.6]} 16... Bxe2 {[%clk
0:01:04.5]} 17. Rfe1 {[%clk 0:02:12.9]} 17... Bd3 {[%clk 0:01:03.4]} 18. Qxd5
{[%clk 0:02:06.4]} 18... Qxd5 {[%clk 0:01:01.4]} 19. Bxd5 {[%clk 0:02:06.2]}
19... Rac8 {[%clk 0:01:02.3]} 20. Bf3 {[%clk 0:01:55.5]} 20... Nf6 {[%clk
0:00:58.9]} 21. Bf4 {[%clk 0:01:52.4]} 21... Bb4 {[%clk 0:00:52.4]} 22. a3
{[%clk 0:01:43.9]} 22... Bxd2 {[%clk 0:00:47]} 23. Bxd2 {[%clk 0:01:44.8]} 23...
Rc2 {[%clk 0:00:35.7]} 24. Rad1 {[%clk 0:01:39]} 24... Bc4 {[%clk 0:00:21.4]}
25. Bb4 {[%clk 0:01:22.8]} 25... Rc8 {[%clk 0:00:18.9]} 26. d5 {[%clk
0:01:18.1]} 26... a5 {[%clk 0:00:10.3]} 27. Bc3 {[%clk 0:01:17.7]} 27... Nd7
{[%clk 0:00:10.1]} 28. Re7 {[%clk 0:01:14.3]} 28... Nf6 {[%clk 0:00:10.3]} 29.
d6 {[%clk 0:01:11.9]} 29... Bb5 {[%clk 0:00:09.9]} 30. Bxf6 {[%clk 0:00:38.1]}
30... gxf6 {[%clk 0:00:10]} 31. d7 {[%clk 0:00:38.5]} 31... Rd8 {[%clk
0:00:10.4]} 32. Bh5 {[%clk 0:00:39]} 32... Kg8 {[%clk 0:00:10.1]} 33. Re8+
{[%clk 0:00:38.4]} 33... Kg7 {[%clk 0:00:03.2]} 34. Rxd8 {[%clk 0:00:37.5]} 1-0